Cogmind - Beta 14 @@@ ROGUE MODE // 2024.11.19 @ 18:27:20 Player: KURIIRI Result: Self-destructed Performance ------------- Evolutions (2) 1000 Regions Visited (5) 1000 Robots Destroyed (66) 330 Value Destroyed (1699) 1699 Prototype IDs (30) 600 Alien Tech Used (0) 0 Bonus (263) 263 TOTAL SCORE: 4892 Bonus ------- High Alert Combat Kills 31 Aligned with FarCom 300 Friendly Fire -68 Cogmind --------- Core Integrity 446/550 Matter 241/300 Energy 100/100 System Corruption 0% Temperature Cool (0) Movement Rolling (100) Location -8/Materials Parts ------- > --- POWER (1) -------- (None) > --- PROPULSION (4) --- Light Treads Armored Treads Armored Huge Wheel > --- UTILITY (4) ------ Large Storage Unit Improved Targeting Computer System Shield > --- WEAPON (2) ------- Gauss Rifle Gauss Rifle > --- INVENTORY (15) --- Light Fission Core Light Treads Light Treads Light Treads Improved Heat Sink Improved Signal Interpreter Transmission Jammer Authchip [Device] Heavy Ion Cannon Firepult Gauss Rifle Gauss Rifle Rocket Launcher Improved Datajack Peak State ------------ > --- POWER ------------ Light Deuterium Engine > --- PROPULSION ------- Light Treads Light Treads Wheel Aerolev Unit > --- UTILITY ---------- Large Storage Unit Improved Targeting Computer Light Armor Plating System Shield > --- WEAPON ----------- Gauss Rifle Gauss Rifle > --- INVENTORY -------- Nuclear Core Light Fission Core Improved Heat Sink Improved Heat Sink High-capacity Battery Improved Signal Interpreter Transmission Jammer Authchip [Device] Firepult Heavy Assault Rifle Gauss Rifle Gauss Rifle Rocket Launcher Improved Datajack [Rating: 31] Favorites ----------- Power Light Ion Engine Engine Light Ion Engine Propulsion Light Treads Treads Light Treads Wheel Wheel Hover Unit Aerolev Unit Utility Improved Targeting Computer Storage Large Storage Unit Processor Improved Targeting Computer Hackware System Shield Protection Light Armor Plating Weapon Heavy Assault Rifle Energy Gun Small Laser Ballistic Gun Heavy Assault Rifle Launcher Rocket Launcher Build | -11 -10 -10 -10 -9 -8 ------- Run | Yrd Mat Min Exi Min Mat Slots Evolved 4 | . . . . . 4 Power . | . . . . . . Propulsion 2 | . . . . . 2 Utility 2 | . . . . . 2 Weapon . | . . . . . . Parts Attached 45 | 6 13 1 1 2 22 Power 5 | 1 1 . . 1 2 Engine 5 | 1 1 . . 1 2 Core . | . . . . . . Reactor . | . . . . . . Propulsion 15 | 2 2 . . 1 10 Treads 11 | 2 2 . . 1 6 Leg . | . . . . . . Wheel 3 | . . . . . 3 Hover 1 | . . . . . 1 Flight . | . . . . . . Utility 11 | 1 4 1 1 . 4 Device . | . . . . . . Storage 4 | 1 1 1 1 . . Processor 2 | . 2 . . . . Hackware 1 | . . . . . 1 Protection 4 | . 1 . . . 3 Artifact . | . . . . . . Weapon 14 | 2 6 . . . 6 Energy Gun 1 | . 1 . . . . Energy Cannon . | . . . . . . Ballistic Gun 11 | 2 5 . . . 4 Ballistic Cannon . | . . . . . . Launcher 2 | . . . . . 2 Special Weapon . | . . . . . . Impact Weapon . | . . . . . . Slashing Weapon . | . . . . . . Piercing Weapon . | . . . . . . Special Melee Weapon . | . . . . . . Unidentified Prototypes 1 | . . . . . 1 Parts Lost 8 | . 4 1 . . 3 Power 2 | . . 1 . . 1 Propulsion 3 | . 2 . . . 1 Utility 2 | . 1 . . . 1 Weapon 1 | . 1 . . . . Highest Loss Streak 3 | . 3 1 . . 3 To Critical Strikes . | . . . . . . Average Slot Usage (%) 88 | . 91 90 85 85 88 Engine 7 | . 14 5 . . 7 Treads 25 | . 24 28 28 28 25 Wheel 1 | . . . . . 4 Storage 11 | . 14 14 14 14 9 Processor 9 | . 5 14 14 14 9 Hackware 3 | . . . . . 7 Protection 4 | . 4 . . . 7 Ballistic Gun 23 | . 27 28 28 28 17 Peak Build Rating 31 | 6 11 11 13 14 31 Average Rating 15 | 5 7 10 12 13 24 On Entrance 9 | . 6 11 10 13 14 Naked Turns . | . . . . . . Heaviest Build 36 | 13 19 26 26 29 36 Greatest Support 60 | 40 40 40 40 40 60 Greatest Overweight (x) 3 | 3 . . . . 3 Average Overweight (x) . | . . . . . 1 Largest Inventory Capacity 15 | 8 10 15 15 15 15 Average Capacity 12 | 7 8 12 15 15 15 Most Carried 15 | 1 8 12 15 15 15 Average Carried 11 | . 5 9 14 14 14 Final Capacity 15 | 8 10 15 15 15 15 Final Carried 15 | 1 8 12 15 14 15 Class Distribution -------------------- 60% | Mutant 39% | Scavenger-Mutant Dominant Class ---------------- Mutant | -10/Materials Mutant | -10/Mines Mutant | -10/Exiles Mutant | -9/Mines Scavenger-Mutant | -8/Materials Resources | -11 -10 -10 -10 -9 -8 ----------- Run | Yrd Mat Min Exi Min Mat Matter Collected 1544 | 208 391 159 . 80 706 Remotely . | . . . . . . Salvage Created 2465 | . 823 259 . 101 1282 Parts 137 | . 61 10 . 2 64 Haulers Intercepted 4 | . 2 . . . 2 Recyclers Shooed 2 | . 1 1 . . . Parts Field Recycled . | . . . . . . Retrieved Matter . | . . . . . . Parts Self-Destructed . | . . . . . . Prevented . | . . . . . . Kills | -11 -10 -10 -10 -9 -8 ------- Run | Yrd Mat Min Exi Min Mat Combat Hostiles Destroyed 47 | . 18 8 . 2 19 Guns 44 | . 18 8 . 2 16 AOE 3 | . . . . . 3 Classes Destroyed 13 | . 6 1 . 1 5 Worker 5 | . 2 . . . 3 Tunneler 2 | . . 1 . . 1 Hauler 4 | . 2 . . . 2 Recycler 2 | . 1 . . . 1 Mechanic 1 | . . . . . 1 Operator 1 | . . . . . 1 Watcher 4 | . 1 . . . 3 Swarmer 13 | . 6 4 . . 3 Grunt 26 | . 12 4 . 1 9 Brawler 2 | . . . . 1 1 Duelist 1 | . . . . . 1 Sentry 4 | . . . . . 4 Specialist 1 | . . . . . 1 Best Kill Streak 7 | . 7 4 . 2 6 Combat Bots Only 7 | . 7 3 . 2 5 Max Kills in Single Turn 3 | . 1 1 . 1 3 Gunslinging . | . . . . . . Exploded 3 | . . . . . 3 Melee . | . . . . . . Uniques/NPCs Destroyed . | . . . . . . Combat | -11 -10 -10 -10 -9 -8 -------- Run | Yrd Mat Min Exi Min Mat Hostile Shots Fired 246 | . 105 32 . 10 99 Missed 72 | . 26 7 . 2 37 Damage Taken 2018 | . 827 262 . 88 841 Core 332 | . 159 48 . 21 104 Absorbed by Shields . | . . . . . . Core Remaining (%) 54 | 100 . . . 8 . Volleys Fired 175 | . 74 18 . 10 73 Largest 2 | . 2 2 . 2 2 Hottest 60 | . 60 46 . 46 56 Shots Fired 344 | . 144 36 . 20 144 Gun 342 | . 144 36 . 20 142 Cannon . | . . . . . . Launcher 2 | . . . . . 2 Special . | . . . . . . Kinetic 339 | . 141 36 . 20 142 Thermal 3 | . 3 . . . . Explosive 2 | . . . . . 2 Electromagnetic . | . . . . . . Robot Hit Streak 21 | . 12 11 . 21 16 Robot Miss Streak 5 | . 5 1 . 3 5 Penetration Max 1 | . . . . . 1 Secondary Targets 5 | . 4 . . . 1 Max Gunslinging Chain 1 | . 1 . . . 1 Shots Hit Robots 242 | . 93 30 . 14 105 Core Hits 107 | . 44 12 . 4 47 Critical Kills 1 | . . . . . 1 Critical Parts Destroyed 3 | . 2 . . . 1 Critical Strikes 4 | . 2 . . . 2 Destroy 4 | . 2 . . . 2 Melee Attacks . | . . . . . . Impact . | . . . . . . Slashing . | . . . . . . Piercing . | . . . . . . Sneak Attacks . | . . . . . . Combat Hostiles . | . . . . . . Follow-up Attacks . | . . . . . . Damage Inflicted 4040 | . 955 478 . 210 2397 Guns 3833 | . 955 476 . 210 2192 Cannons . | . . . . . . Explosions 200 | . . . . . 200 Melee . | . . . . . . Ramming 7 | . . 2 . . 5 Kinetic 3802 | . 924 476 . 210 2192 Thermal 31 | . 31 . . . . Explosive 200 | . . . . . 200 Electromagnetic . | . . . . . . Impact . | . . . . . . Slashing . | . . . . . . Piercing . | . . . . . . Highest Corruption . | . . . . . . Average Corruption . | . . . . . . Corruption Purged . | . . . . . . Corruption Blocked . | . . . . . . Overload Shots . | . . . . . . Overflow Damage . | . . . . . . Projectiles . | . . . . . . Explosions . | . . . . . . Melee . | . . . . . . Knockbacks . | . . . . . . Impact . | . . . . . . Kinetic . | . . . . . . Secondary . | . . . . . . Self-Inflicted Damage 14 | . . . . . 14 Shots 1 | . . . . . 1 Rammed 2 | . . . . . 2 Targets Rammed 3 | . . 1 . . 2 Kicked . | . . . . . . Crushed 1 | . . 1 . . . Highest Temperature 74 | . 74 . . . 25 Average Temperature 17 | . 20 . . . 6 Received Heat Transfer 846 | . 357 90 . 48 351 Siege Activations . | . . . . . . Robots Corrupted . | . . . . . . Combat Hostiles . | . . . . . . Parts Fried . | . . . . . . Impact Corruptions . | . . . . . . Robots Melted . | . . . . . . Combat Hostiles . | . . . . . . Parts Melted 1 | . . 1 . . . Heat Transferred 75 | . 75 . . . . Parts Sabotaged . | . . . . . . Parts Stolen . | . . . . . . Parts Stripped . | . . . . . . Power Chain Reactions . | . . . . . . Alert | -11 -10 -10 -10 -9 -8 ------- Run | Yrd Mat Min Exi Min Mat Peak Influence 568 | . 338 148 . 50 568 Initial 19 | . . 13 . . 19 Average 101 | . 134 44 . 36 119 Maximum Alert Level 2 | . 1 . . . 2 Low Security (%) 84 | 100 76 100 . 100 80 Level 1 13 | . 23 . . . 16 Level 2 1 | . . . . . 3 Level 3 . | . . . . . . Level 4 . | . . . . . . Level 5 . | . . . . . . High Security . | . . . . . . Max Security . | . . . . . . Squads Dispatched 10 | . 6 . . . 4 Investigation 7 | . 6 . . . 1 Extermination . | . . . . . . Reinforcement 1 | . . . . . 1 Assault 1 | . . . . . 1 Garrison 1 | . . . . . 1 Intercept . | . . . . . . Searches Triggered . | . . . . . . Construction Impeded . | . . . . . . Haulers Reinforced . | . . . . . . Active Scanning Responses . | . . . . . . Cargo Convoy Interrupts . | . . . . . . Stealth | -11 -10 -10 -10 -9 -8 --------- Run | Yrd Mat Min Exi Min Mat Distress Signals 4 | . 2 . . . 2 Communications Jammed . | . . . . . . Distress Signals . | . . . . . . Times Spotted 63 | . 24 9 . 2 28 Peak Tracking Total 5 | . 5 2 . 2 5 Tactical Retreats 6 | . 2 . . . 4 Traps | -11 -10 -10 -10 -9 -8 ------- Run | Yrd Mat Min Exi Min Mat Traps Triggered 2 | . 1 . . . 1 Indirectly . | . . . . . . Trap Hack Attempts . | . . . . . . Triggered . | . . . . . . Disarmed . | . . . . . . Reprogrammed 3 | . 3 . . . . Reused 1 | . 1 . . . . Traps Extracted . | . . . . . . Installed . | . . . . . . Triggered 1 | . 1 . . . . Machines | -11 -10 -10 -10 -9 -8 ---------- Run | Yrd Mat Min Exi Min Mat Machines Disabled 3 | . . . . . 3 Max in Single Turn 1 | . . . . . 1 Garrison Access 1 | . . . . . 1 Machines Repaired . | . . . . . . Machines Dismantled . | . . . . . . Machines Sabotaged . | . . . . . . Overloaded Fab Kills . | . . . . . . Hacking | -11 -10 -10 -10 -9 -8 --------- Run | Yrd Mat Min Exi Min Mat Machines Accessed 19 | . 8 . 2 . 9 Terminals 14 | . 7 . . . 7 Fabricators . | . . . . . . Repair Stations . | . . . . . . Recycling Units 2 | . 1 . . . 1 Scanalyzers 1 | . . . . . 1 Garrison Access . | . . . . . . Total Hacks 59 | . 22 . 2 . 35 Successful 39 | . 12 . 2 . 25 Failed 18 | . 9 . . . 9 Catastrophic 3 | . 1 . . . 2 Database Lockouts 2 | . 1 . . . 1 Manual 41 | . 16 . 1 . 24 Terminals 51 | . 21 . . . 30 Fabricators . | . . . . . . Repair Stations . | . . . . . . Recycling Units 2 | . 1 . . . 1 Scanalyzers 4 | . . . . . 4 Garrison Access . | . . . . . . Terminal Hacks 18 | . 7 . 2 . 9 Record 1 | . . . 1 . . Robot Analysis 3 | . 2 . . . 1 Prototype ID Bank 3 | . . . . . 3 Terminal Index 3 | . 2 . . . 1 Unreport Threat 1 | . 1 . . . . Reprogram Traps 2 | . 2 . . . . Zone Layout 4 | . . . . . 4 Derelict Proto ID Bank 1 | . . . 1 . . Fabricator Hacks . | . . . . . . Repair Station Hacks . | . . . . . . Recycling Unit Hacks . | . . . . . . Scanalyzer 4 | . . . . . 4 Insert Component 2 | . . . . . 2 Analyze 2 | . . . . . 2 Garrison Access Hacks . | . . . . . . Unauthorized Hacks 17 | . 5 . . . 12 Terminals 15 | . 4 . . . 11 Assimilate 2 | . . . . . 2 Botnet 6 | . 3 . . . 3 Operators 2 | . 1 . . . 1 Skim 5 | . . . . . 5 Fabricators . | . . . . . . Repair Stations . | . . . . . . Recycling Units 2 | . 1 . . . 1 Tunnel 2 | . 1 . . . 1 Scanalyzers . | . . . . . . Garrison Access . | . . . . . . Data Cores Recovered . | . . . . . . Used . | . . . . . . Hacking Detections 13 | . 6 . . . 7 Full Trace Events 4 | . 4 . . . . Feedback Events . | . . . . . . Feedback Blocked . | . . . . . . Robot Schematics Acquired . | . . . . . . Robots Built . | . . . . . . Authchips . | . . . . . . Time . | . . . . . . Total Robot Build Rating . | . . . . . . Part Schematics Acquired 2 | . . . . . 2 Parts Built . | . . . . . . Authchips . | . . . . . . Time . | . . . . . . Total Part Build Rating . | . . . . . . Parts Repaired . | . . . . . . Time . | . . . . . . Parts Recycled . | . . . . . . Recycled Matter . | . . . . . . Retrieved Matter . | . . . . . . Retrieved Components . | . . . . . . Parts Scanalyzed 2 | . . . . . 2 Part Schematics Acquired 2 | . . . . . 2 Parts Damaged . | . . . . . . Bothacking | -11 -10 -10 -10 -9 -8 ------------ Run | Yrd Mat Min Exi Min Mat Used RIF Installer . | . . . . . . Robots Hacked . | . . . . . . Non-combat . | . . . . . . Combat . | . . . . . . Robot Hacks Applied . | . . . . . . Relay Couplers Released 3 | . . . . . 3 Machine Destruction 3 | . . . . . 3 Fabnet Peak Effective % . | . . . . . . Robots Rewired . | . . . . . . Allies Hacked . | . . . . . . Hacks Repelled . | . . . . . . Allies | -11 -10 -10 -10 -9 -8 -------- Run | Yrd Mat Min Exi Min Mat Total Allies 2 | . . 1 . . 1 Largest Group 1 | . . 1 . . 1 Highest-Rated Group 31 | . . 31 . . 10 Highest-Rated Ally 31 | . . 31 . . 10 Total Orders 2 | . . . . . 2 STAY 1 | . . . . . 1 FOLLOW 1 | . . . . . 1 Ally Attacks 1 | . . 1 . . . Total Damage 21 | . . 21 . . . Kills . | . . . . . . Allies Corrupted . | . . . . . . Allies Melted . | . . . . . . Intel | -11 -10 -10 -10 -9 -8 ------- Run | Yrd Mat Min Exi Min Mat Robot Analysis Total 3 | . 2 . . . 1 Derelict Logs Recovered 1 | . . 1 . . . Drone Launches . | . . . . . . Drone Recoveries . | . . . . . . Exploration | -11 -10 -10 -10 -9 -8 ------------- Run | Yrd Mat Min Exi Min Mat Turns Passed 3611 | 64 861 526 382 294 1484 Spaces Moved 1876 | 36 356 291 236 148 809 Core 4 | 4 . . . . . Treads 1448 | 32 356 291 236 148 385 Legs . | . . . . . . Wheels 424 | . . . . . 424 Hover . | . . . . . . Flight . | . . . . . . Fastest Speed 50 | 50 160 160 160 160 100 Average Speed 150 | 153 160 160 160 160 138 Slowest Speed 240 | 200 160 160 160 160 240 Overloaded Moves . | . . . . . . Propulsion Burnouts . | . . . . . . Robots Hopped . | . . . . . . Cave-ins Triggered . | . . . . . . Exploration Rate (%) 54 | 3 65 90 59 45 65 Regions Visited 5 Branch Regions 3 Pre-discovered Areas 5 | . 1 1 1 . 2 Known Exits Taken 1 | . . 1 . . . Unknown Exits Taken 4 | 1 1 . 1 1 . Scrap Searched 2 | . . 1 . 1 . Spaces Dug . | . . . . . . Terrain Destroyed 19 | . . . . . 19 Melee . | . . . . . . Projectile 1 | . . . . . 1 AOE 18 | . . . . . 18 Terrain Rammed . | . . . . . . Walls Destroyed . | . . . . . . Machines Disabled . | . . . . . . Actions | -11 -10 -10 -10 -9 -8 --------- Run | Yrd Mat Min Exi Min Mat Total 2336 | 42 522 314 243 187 1028 Wait 180 | . 62 1 . 24 93 Move 1871 | 35 355 290 235 147 809 Hop . | . . . . . . Pick Up 31 | 1 10 3 4 2 11 Fast Attach 19 | 6 5 . . . 8 Attach 5 | . 1 . . 1 3 Detach 1 | . . . . . 1 Swap 21 | . 7 1 1 1 11 Drop 30 | . 8 . 3 2 17 Fire 175 | . 74 18 . 10 73 Melee . | . . . . . . Ram . | . . . . . . Kick . | . . . . . . Crush 3 | . . 1 . . 2 Escape Stasis . | . . . . . . Rewire . | . . . . . . Trap . | . . . . . . Miscellaneous . | . . . . . . Route ------- -11/Scrapyard -10/Materials (discovered 2 exits: [*Mat] / [*Min]) -10/Mines (discovered 3 exits: [*Mat x2] / *Exi) -10/Exiles -9/Mines -8/Materials (discovered 4 exits: *Fac x3 / [*Sto]) History --------- Turn | Location | Event 18 | -11/Scrapyard | Discovered new exit (range 15) 65 | -11/Scrapyard | Entered Materials 315 | -10/Materials | Build established: Mutant 331 | -10/Materials | Destroyed 7 combat bots 509 | -10/Materials | Core integrity fell below 50% 537 | -10/Materials | Lost 3 parts (2n1u) 698 | -10/Materials | Discovered new exit (range 13) 769 | -10/Materials | Central database locked down 899 | -10/Materials | Discovered new exit (range 14) 926 | -10/Materials | Entered Mines 1032 | -10/Mines | Build established: Scavenger-Mutant 1122 | -10/Mines | Discovered new exit (range 9) 1286 | -10/Mines | Discovered new exit (range 12) 1294 | -10/Mines | Identified exit to Exiles 1301 | -10/Mines | Escorted by a lone wolf Derelict 1321 | -10/Mines | Learned location of Storage (-8) 1410 | -10/Mines | Build established: Mutant 1414 | -10/Mines | Core integrity fell below 20% 1445 | -10/Mines | Deemed a non-threat by the Exiles lab entrance 1452 | -10/Mines | Entered Exiles 1495 | -10/Exiles | Met 8R-AWN 1523 | -10/Exiles | Met EX-HEX 1564 | -10/Exiles | Met EX-BIN 1583 | -10/Exiles | Aligned with FarCom system 1585 | -10/Exiles | Given EX-Vault access code 1622 | -10/Exiles | Opened EX-Vault 1634 | -10/Exiles | Found Firepult 1670 | -10/Exiles | Warned to stay clear of 0b10 Research branches 1721 | -10/Exiles | Learned location of Zion (-6) 1806 | -10/Exiles | Discovered new exit (range 14) 1834 | -10/Exiles | Left Exiles lab with Firepult 1834 | -10/Exiles | Entered Mines 2005 | -9/Mines | Found a hidden stash of uninstalled traps 2047 | -9/Mines | Received a Rocket Launcher from a helpful Derelict 2094 | -9/Mines | Discovered new exit (range 6) 2128 | -9/Mines | Entered Materials 2128 | -8/Materials | Evolved 4 slots: Propulsion x2, Utility x2 2477 | -8/Materials | Central database locked down 2566 | -8/Materials | Discovered new exit (range 10) 2596 | -8/Materials | Build established: Scavenger-Mutant 3141 | -8/Materials | Discovered new exit (range 12) 3198 | -8/Materials | Learned Factory stockpile data 3234 | -8/Materials | Learned location of Extension (-5) 3259 | -8/Materials | Learned location of 1 exit from Lower Caves 3275 | -8/Materials | Learned location of 2 exits from Lower Caves 3279 | -8/Materials | Learned Factory scanalyzer intel 3280 | -8/Materials | Learned 4 Recycling zone layouts 3281 | -8/Materials | Learned 4 Recycling zone layouts 3282 | -8/Materials | Learned Storage stockpile data 3285 | -8/Materials | Learned 8 Factory zone layouts 3297 | -8/Materials | Identified exit to Factory 3382 | -8/Materials | Lost 3 parts (1p1n1u) 3490 | -8/Materials | Discovered new exit (range 11) 3536 | -8/Materials | Garrison activated, responded to threat 3612 | -8/Materials | Self-destructed Last Messages --------------- 03589_ Slug penetrates Wall. 03592_ Slug penetrates X-57 Shotgunner. 03594_ K-01 Serf collects debris. 03596_ Slug penetrates X-57 Shotgunner. 03599_ Slug penetrates Wall. 03599_ Slug penetrates X-57 Shotgunner. 03599_ Atomic Centrifuge disabled. 03602_ Slug penetrates X-57 Shotgunner. 03602_ X-57 Shotgunner destroyed. 03605_ Acquired 56 matter. 03607_ Slammed into W-25 Informer. 03612_ ALERT: Garrison Access compromised, dispatching assault squad. 03612_ Garrison Access disabled. 03612_ Relay Coupler [Duelist] tumbles out of Garrison Access. 03612_ Relay Coupler [Sentry] tumbles out of Garrison Access. 03612_ Relay Coupler [NC] tumbles out of Garrison Access. Map ----- +----------------------------------------------------+ | ???????# =!#???????# """"" #""??????? ## #### | | ???????#== #???????# """ #""??????? ## #??# | | ???????# #??????? #????" # ## #??# | | ???????# +???????# " " * #???"" # ## #??# | | ???????#! #?????????"R" #??""" # ## #??# | | ???????#!! #???????????" [ #? # ## #??# | | ########* !##############"### #####+### #??# | | !! %! %= #??? | | %* #??? | | =%[ #??? | | ########! ##############"## ### ### #??? | | # = # #?????# """" ## #### = #?# #??? | | # # #?????# """" [ ## #??#=[!! ]#?# #??# | | # """ + #???### """" ## #??#==!!]]#?# #### | | # """ # #?? # ## #??########?# | | # """ # #?? # ## #???????????# | | # ?# #? " # ## #???????????# ! | | ######?# #?""" # ##=#???????????####+### | | #??????# # "" # ! ##%#???????????# # | | #??????# # """ ######;#####=####????????# """ !# | | ######## ! / "" #????#w#??#!*= #????????# """ # | | # = # """ ######;####=% #????????# """ # | | # # """ ## # =< #????????# # | | #?""" ## " " # #????????######## | | ##+#########? " ## " " # #???????????????? | | #????? ## " "@ ## ##???????????????? | | """ """???????#+### ! ! ## #????????????????? | | """ """ #?????????# !" ## #????????????????? | | """ """ #?????????# H"G" ## #????????????????? | | #?????# #?# " ## #????????????????? | | [#?????# #?#! ## #????????????????? | | #########?????# #?#####+##### #????????????????? | | #????????# ??x?? ???? #????????????????? | | #????????# ????? ?w?? /????????????????? | | #????????# ????? ???? ?????????????????? | | || #?##########????# ?????# ?????????????????? | | || !### # ????#???????????????????????????? | | | [!%## # ??????